Cogmind - Beta 11 @@@ ROGUE MODE // 2022.04.14 @ 18:11:22 Player: Red Box Result: Self-destructed Performance ------------- Evolutions (3) 1500 Regions Visited (8) 1600 Robots Destroyed (136) 680 Value Destroyed (3574) 3574 Prototype IDs (42) 840 Alien Tech Used (0) 0 Bonus (89) 89 TOTAL SCORE: 8283 Bonus ------- High Alert Combat Kills 22 Follower Combat Kills 84 Aligned with FarCom 300 Friendly Fire -317 Cogmind --------- Core Integrity 603/700 Matter 234/300 Energy 225/280 System Corruption 7% Temperature Cool (0) Movement Rolling (150) Ox4 Location -7/Factory Parts ------- > --- POWER (1) -------- Cooled Ion Engine > --- PROPULSION (3) --- Armored Wheel Armored Wheel > --- UTILITY (7) ------ Advanced Heat Sink Huge Storage Unit Improved Medium Armor Plating Improved Shield Generator > --- WEAPON (2) ------- Flak Cannon Advanced Assault Cannon > --- INVENTORY (25) --- Cooled Ion Engine Armored Wheel Improved Airjet Improved Airjet Improved Airjet Antigrav System Antigrav System High-capacity Storage Unit Compact Matter Pod (150) Advanced Visual Processing Unit Improved Signal Interpreter Recoil Stabilizer Improved Propulsion Shielding Hardlight Generator Improved Trap Extractor (3/6 Proton Bomb) Improved Field Recycling Unit (167) Guided Plasma Cannon Heavy Assault Cannon Advanced Assault Cannon Advanced Assault Cannon Advanced Assault Cannon Shock Bomb Launcher Rocket Launcher Powered Hammer Peak State ------------ > --- POWER ------------ Cooled Ion Engine > --- PROPULSION ------- Armored Wheel Armored Wheel Armored Wheel > --- UTILITY ---------- Advanced Heat Sink Huge Storage Unit Advanced Targeting Computer Core Analyzer Improved Shield Generator System Shield Improved Field Recycling Unit > --- WEAPON ----------- Advanced Assault Cannon Advanced Assault Cannon > --- INVENTORY -------- Cooled Ion Engine Armored Wheel Armored Wheel Improved Airjet Improved Airjet Improved Airjet Antigrav System Antigrav System High-capacity Storage Unit Compact Battery Compact Matter Pod Advanced Visual Processing Unit Core Analyzer Recoil Stabilizer Improved Propulsion Shielding Hardlight Generator Improved Trap Extractor Guided Plasma Cannon Heavy Assault Cannon Flak Cannon Advanced Assault Cannon Advanced Assault Cannon Rocket Launcher Powered Hammer [Rating: 50] Favorites ----------- Power Heavy Ion Engine Engine Heavy Ion Engine Propulsion Wheel Leg Aluminum Leg Wheel Wheel Hover Unit Improved Airjet Utility Huge Storage Unit Device Heat Sink Storage Huge Storage Unit Processor Advanced Targeting Computer Hackware System Shield Protection Medium Armor Plating Weapon Ion Cannon Energy Gun Medium Laser Energy Cannon Ion Cannon Ballistic Gun Light Assault Rifle Ballistic Cannon Improved Light Cannon Launcher Rocket Launcher Impact Weapon Hammer Build | -11 -10 -10 -9 -9 -9 -8 -8 -7 ------- Run | Scr Mat Min Mat Min Exi Min Mat Fac Slots Evolved 6 | . . . 2 . . . 2 2 Power . | . . . . . . . . . Propulsion 1 | . . . . . . . . 1 Utility 5 | . . . 2 . . . 2 1 Weapon . | . . . . . . . . . Parts Attached 129 | 9 9 7 28 6 2 4 39 25 Power 6 | 1 . 1 2 . . . 1 1 Engine 6 | 1 . 1 2 . . . 1 1 Core . | . . . . . . . . . Reactor . | . . . . . . . . . Propulsion 25 | 4 2 . 6 . . . 10 3 Treads . | . . . . . . . . . Leg 2 | 2 . . . . . . . . Wheel 22 | 2 2 . 6 . . . 9 3 Hover 1 | . . . . . . . 1 . Flight . | . . . . . . . . . Utility 47 | 2 2 2 11 2 . . 15 13 Device 22 | 1 1 1 3 1 . . 4 11 Storage 5 | 1 1 1 1 . . . 1 . Processor 4 | . . . 1 . . . 3 . Hackware 2 | . . . . . . . 1 1 Protection 14 | . . . 6 1 . . 6 1 Artifact . | . . . . . . . . . Weapon 51 | 2 5 4 9 4 2 4 13 8 Energy Gun 2 | . 2 . . . . . . . Energy Cannon 16 | . 2 . 2 2 2 2 6 . Ballistic Gun 2 | 2 . . . . . . . . Ballistic Cannon 18 | . . 3 5 . . 2 3 5 Launcher 5 | . . . 1 2 . . . 2 Special Weapon . | . . . . . . . . . Impact Weapon 8 | . 1 1 1 . . . 4 1 Slashing Weapon . | . . . . . . . . . Piercing Weapon . | . . . . . . . . . Special Melee Weapon . | . . . . . . . . . Unidentified Prototypes 1 | . . . . . . . 1 . Corrupted Parts 3 | . . . . 1 . 2 . . System Corruption 16 | . . . . 6 . 10 . . Parts Lost 21 | . 2 1 6 . . . 9 3 Power 2 | . . . 1 . . . 1 . Propulsion 8 | . 2 . 3 . . . 3 . Utility 9 | . . 1 1 . . . 4 3 Weapon 2 | . . . 1 . . . 1 . Highest Loss Streak 3 | . 1 1 3 . . . 3 3 To Critical Strikes . | . . . . . . . . . Average Slot Usage (%) 98 | . 99 99 99 100 78 97 98 98 Engine 10 | . 14 14 11 11 11 11 9 6 Wheel 22 | . 28 28 21 22 22 22 17 22 Device 13 | . 14 13 11 11 11 11 13 21 Storage 10 | . 14 14 11 11 11 11 9 7 Processor 10 | . . . 7 11 11 11 18 14 Hackware 1 | . . . . . . . 2 4 Protection 8 | . . . 13 10 11 11 9 2 Energy Gun 1 | . 10 . . . . . . . Energy Cannon 6 | . 3 3 . 20 1 19 11 . Ballistic Gun 1 | . 9 . . . . . . . Ballistic Cannon 9 | . . 22 20 . . . 4 14 Impact Weapon 1 | . 4 2 . . . . 1 . Naked Turns . | . . . . . . . . . Heaviest Build 117 | 13 52 92 108 108 108 108 113 117 Greatest Support 36 | 20 20 20 20 20 20 20 28 36 Greatest Overweight (x) 11 | . 2 4 10 5 5 5 11 4 Average Overweight (x) 3 | . 1 3 5 5 4 5 4 2 Largest Inventory Capacity 25 | 8 20 25 25 25 25 25 25 25 Average Capacity 23 | 7 19 22 25 25 25 25 25 25 Most Carried 25 | 8 20 25 25 25 25 25 25 25 Average Carried 23 | 5 15 22 24 24 24 24 24 24 Final Capacity 25 | 8 20 25 25 25 25 25 25 25 Final Carried 25 | 8 20 25 25 25 25 25 25 25 Class Distribution -------------------- 82% | Mutant 15% | Commander-Mutant Dominant Class ---------------- Mutant | -10/Materials Mutant | -10/Mines Mutant | -9/Materials Commander-Mutant | -9/Mines Commander-Mutant | -9/Exiles Commander-Mutant | -8/Mines Mutant | -8/Materials Mutant | -7/Factory Resources | -11 -10 -10 -9 -9 -9 -8 -8 -7 ----------- Run | Scr Mat Min Mat Min Exi Min Mat Fac Matter Collected 3159 | 342 140 102 1044 150 9 92 576 704 Remotely 10 | . . . . . . . 10 . Salvage Created 4201 | 172 739 104 939 39 . 97 1513 598 Parts 271 | 14 61 3 65 8 . 4 77 39 Haulers Intercepted 11 | . 2 . 4 . . . 5 . Recyclers Shooed 3 | . . . 2 . . . . 1 Parts Field Recycled 16 | . . . . . . . . 16 Retrieved Matter 260 | . . . . . . . . 260 Parts Self-Destructed . | . . . . . . . . . Prevented . | . . . . . . . . . Kills | -11 -10 -10 -9 -9 -9 -8 -8 -7 ------- Run | Scr Mat Min Mat Min Exi Min Mat Fac Combat Hostiles Destroyed 97 | . 21 3 27 3 . 2 25 16 Melee 5 | . 1 . . . . . 4 . Guns 19 | . 19 . . . . . . . Cannons 65 | . . 3 26 2 . 2 20 12 AOE 6 | . . . 1 1 . . . 4 Classes Destroyed 15 | 2 5 . 1 2 . 1 2 2 Worker 5 | . 1 . 1 1 . . . 2 Builder 1 | . . . . . . . . 1 Tunneler 5 | 5 . . . . . . . . Hauler 11 | . 2 . 4 . . . 5 . Recycler 5 | 1 . . 2 . . . 1 1 Operator 2 | . . . . 1 . . 1 . Watcher 12 | . 3 . 4 . . . 5 . Swarmer 31 | . 12 . 8 1 . . 6 4 Grunt 43 | . 9 3 11 . . 1 11 8 Brawler 2 | . . . . . . . 1 1 Duelist 2 | . . . . . . 1 . 1 Sentry 14 | . . . 8 . . . 6 . Hunter 1 | . . . . . . . 1 . Programmer 2 | . . . . . . . . 2 Assembled 2 | . . . . 2 . . . . Best Kill Streak 6 | 2 4 1 6 2 . 2 5 6 Combat Bots Only 5 | . 3 1 5 2 . 2 2 4 Max Kills in Single Turn 3 | 1 2 1 3 2 . 1 1 2 Gunslinging 1 | . 1 . . . . . . . Exploded 2 | . . . 1 1 . . . 2 Melee 1 | . 1 . . . . . 1 . Uniques/NPCs Destroyed . | . . . . . . . . . Combat | -11 -10 -10 -9 -9 -9 -8 -8 -7 -------- Run | Scr Mat Min Mat Min Exi Min Mat Fac Damage Taken 3775 | . 514 97 1077 75 . 146 1194 672 Core 594 | . 133 23 107 . . . 234 97 Absorbed by Shields 266 | . . . . . . . 68 198 Redirected to Shielding 44 | . . . 44 . . . . . Regen/Repaired (Parts) 91 | . 19 . . . . . 72 . Core Remaining (%) 66 | 100 . 37 . . . 73 57 . Volleys Fired 293 | 26 49 13 92 3 . 4 67 39 Largest 2 | 2 2 2 2 2 . 2 2 2 Hottest 120 | 40 90 120 78 120 . 120 120 96 Shots Fired 581 | 52 97 26 181 7 . 9 131 78 Gun 148 | 52 96 . . . . . . . Cannon 421 | . 1 26 180 4 . 9 131 70 Launcher 12 | . . . 1 3 . . . 8 Special . | . . . . . . . . . Kinetic 366 | 52 50 8 180 . . . 6 70 Thermal 203 | . 47 18 . 4 . 9 125 . Explosive 7 | . . . 1 3 . . . 3 Electromagnetic 5 | . . . . . . . . 5 Robot Hit Streak 14 | 5 13 7 9 4 . 2 14 11 Robot Miss Streak 5 | 4 4 2 4 4 . 2 3 5 Penetration Max . | . . . . . . . . . Secondary Targets 4 | . 4 . . . . . . . Max Gunslinging Chain 1 | . 1 . . . . . . . Shots Hit Robots 375 | 31 70 21 110 4 . 4 86 49 Core Hits 190 | 10 36 4 43 11 . 2 47 37 Critical Kills 2 | . 1 . . . . . 1 . Critical Parts Destroyed 1 | . 1 . . . . . . . Critical Strikes 14 | . 2 . 8 . . . 1 3 Blast 11 | . . . 8 . . . . 3 Smash 3 | . 2 . . . . . 1 . Melee Attacks 57 | . 15 9 5 . . . 19 9 Impact 57 | . 15 9 5 . . . 19 9 Slashing . | . . . . . . . . . Piercing . | . . . . . . . . . Sneak Attacks 4 | . 1 . 1 . . . 2 . Combat Hostiles . | . . . . . . . . . Follow-up Attacks . | . . . . . . . . . Damage Inflicted 8739 | 262 884 378 2492 412 . 114 2435 1762 Guns 917 | 262 655 . . . . . . . Cannons 6003 | . 17 378 2370 70 . 114 1801 1253 Explosions 937 | . . . 86 342 . . . 509 Melee 882 | . 212 . 36 . . . 634 . Ramming . | . . . . . . . . . Kinetic 4429 | 262 283 123 2370 . . . 138 1253 Thermal 2491 | . 389 255 . 70 . 114 1663 . Explosive 680 | . . . 86 342 . . . 252 Electromagnetic 257 | . . . . . . . . 257 Impact 882 | . 212 . 36 . . . 634 . Slashing . | . . . . . . . . . Piercing . | . . . . . . . . . Highest Corruption 17 | . . . 1 7 7 17 . 7 Average Corruption 5 | . . . 1 5 7 9 . 5 Corruption Purged . | . . . . . . . . . Corruption Blocked . | . . . . . . . . . Effects 61 | . . . 5 29 18 8 . 1 Message Errors 18 | . . . 2 8 8 . . . Matter Fused 10 | . . . . 3 3 4 . . Heat Flow Errors 7 | . . . . 5 2 . . . Energy Discharges 7 | . . . . 4 2 1 . . Parts Rejected 1 | . . . . . . . . 1 Data Loss (minor) 8 | . . . 2 4 2 . . . Data Loss (major) 6 | . . . 1 2 1 2 . . Misfires 3 | . . . . 2 . 1 . . Alerts 1 | . . . . 1 . . . . Overload Shots . | . . . . . . . . . Overflow Damage 202 | . 26 10 24 . . . 135 7 Projectiles 77 | . . 10 24 . . . 43 . Explosions 7 | . . . . . . . . 7 Melee 118 | . 26 . . . . . 92 . Knockbacks 28 | . 1 1 13 . . . 2 11 Impact 2 | . 1 . . . . . 1 . Kinetic 22 | . . 1 13 . . . . 8 Secondary 4 | . . . . . . . 1 3 Self-Inflicted Damage 55 | . . . . 45 . . . 10 Shots 2 | . . . . 1 . . . 1 Rammed . | . . . . . . . . . Targets Rammed . | . . . . . . . . . Kicked . | . . . . . . . . . Crushed . | . . . . . . . . . Highest Temperature 318 | . 24 318 165 245 267 185 213 4 Average Temperature 55 | . 10 125 40 101 141 108 31 3 Received Heat Transfer 1521 | . 180 54 447 . . 51 639 150 Siege Activations . | . . . . . . . . . Robots Corrupted . | . . . . . . . . . Combat Hostiles . | . . . . . . . . . Parts Fried 5 | . 3 . . . . . 1 1 Impact Corruptions 6 | . 2 . . . . . 4 . Robots Melted . | . . . . . . . . . Combat Hostiles . | . . . . . . . . . Parts Melted 10 | . 3 2 . . . 1 4 . Heat Transferred 4444 | . 1040 518 . 111 . 185 2590 . Parts Sabotaged . | . . . . . . . . . Parts Stolen . | . . . . . . . . . Parts Stripped . | . . . . . . . . . Power Chain Reactions . | . . . . . . . . . Missiles Intercepted . | . . . . . . . . . Alert | -11 -10 -10 -9 -9 -9 -8 -8 -7 ------- Run | Scr Mat Min Mat Min Exi Min Mat Fac Peak Influence 442 | 30 378 213 390 216 . 81 442 298 Initial 147 | . 19 147 7 138 . . 31 79 Average 179 | 13 165 85 240 78 . 78 234 103 Maximum Alert Level 2 | . 1 1 1 1 . . 2 1 Low Security (%) 52 | 100 69 70 25 96 . 100 29 91 Level 1 47 | . 30 29 74 3 . . 67 8 Level 2 . | . . . . . . . 3 . Level 3 . | . . . . . . . . . Level 4 . | . . . . . . . . . Level 5 . | . . . . . . . . . High Security . | . . . . . . . . . Max Security . | . . . . . . . . . Squads Dispatched 10 | . 3 . 3 . . . 2 2 Investigation 1 | . 1 . . . . . . . Extermination 2 | . . . . . . . . 2 Reinforcement 7 | . 2 . 3 . . . 2 . Assault . | . . . . . . . . . Garrison . | . . . . . . . . . Intercept . | . . . . . . . . . Searches Triggered . | . . . . . . . . . Construction Impeded . | . . . . . . . . . Haulers Reinforced . | . . . . . . . . . Active Scanning Responses . | . . . . . . . . . Cargo Convoy Interrupts . | . . . . . . . . . Stealth | -11 -10 -10 -9 -9 -9 -8 -8 -7 --------- Run | Scr Mat Min Mat Min Exi Min Mat Fac Distress Signals 9 | . 1 . 4 2 . . 2 . Communications Jammed . | . . . . . . . . . Distress Signals . | . . . . . . . . . Times Spotted 154 | . 34 3 46 4 . 3 43 21 Peak Tracking Total 7 | . 3 2 6 2 . 3 7 6 Tactical Retreats 12 | . 2 . 3 . . . 4 3 Traps | -11 -10 -10 -9 -9 -9 -8 -8 -7 ------- Run | Scr Mat Min Mat Min Exi Min Mat Fac Traps Triggered 2 | . 1 . 1 . . . . . Indirectly . | . . . . . . . . . Trap Hack Attempts . | . . . . . . . . . Triggered . | . . . . . . . . . Disarmed . | . . . . . . . . . Reprogrammed . | . . . . . . . . . Reused . | . . . . . . . . . Traps Extracted . | . . . . . . . . . Installed . | . . . . . . . . . Triggered . | . . . . . . . . . Most Traps Carried 3 | . . . . 3 3 3 3 3 Machines | -11 -10 -10 -9 -9 -9 -8 -8 -7 ---------- Run | Scr Mat Min Mat Min Exi Min Mat Fac Machines Disabled 9 | . . . 2 . . . 3 4 Max in Single Turn 2 | . . . 1 . . . 1 2 Machines Sabotaged . | . . . . . . . . . Garrisons Compromised . | . . . . . . . . . Overloaded Fab Kills . | . . . . . . . . . Hacking | -11 -10 -10 -9 -9 -9 -8 -8 -7 --------- Run | Scr Mat Min Mat Min Exi Min Mat Fac Machines Accessed 45 | . 9 2 13 . 2 . 15 4 Terminals 29 | . 6 1 10 . . . 10 2 Fabricators 1 | . . . . . . . . 1 Repair Stations 2 | . 1 . . . . . 1 . Recycling Units 7 | . 2 . 2 . . . 2 1 Scanalyzers 2 | . . . 1 . . . 1 . Garrison Access 1 | . . . . . . . 1 . Total Hacks 148 | . 27 5 53 . 2 . 52 9 Successful 97 | . 17 3 36 . 2 . 38 1 Failed 49 | . 9 2 16 . . . 14 8 Catastrophic 3 | . . . 1 . . . 1 1 Database Lockouts 2 | . 1 . 1 . . . . . Manual 85 | . 16 4 26 . 1 . 37 1 Terminals 104 | . 22 4 36 . . . 38 4 Fabricators 4 | . . . . . . . . 4 Repair Stations 4 | . 2 . . . . . 2 . Recycling Units 15 | . 3 . 6 . . . 5 1 Scanalyzers 16 | . . . 11 . . . 5 . Garrison Access 2 | . . . . . . . 2 . Terminal Hacks 38 | . 7 3 10 . 2 . 16 . Record 1 | . . . . . 1 . . . Part Schematic 3 | . . . . . . . 3 . Robot Schematic 1 | . . 1 . . . . . . Robot Analysis 9 | . 1 1 2 . . . 5 . Prototype ID Bank 12 | . 3 . 5 . . . 4 . Open Door 1 | . . 1 . . . . . . Terminal Index 3 | . 1 . 1 . . . 1 . Unreport Threat 3 | . 1 . 1 . . . 1 . Locate Traps 4 | . 1 . 1 . . . 2 . EX-Prototype ID Bank 1 | . . . . . 1 . . . Fabricator Hacks 1 | . . . . . . . . 1 Build 1 | . . . . . . . . 1 Repair Station Hacks 4 | . 2 . . . . . 2 . Scan Component 2 | . 1 . . . . . 1 . Repair 2 | . 1 . . . . . 1 . Recycling Unit Hacks 4 | . 1 . 1 . . . 2 . Retrieve Components 4 | . 1 . 1 . . . 2 . Scanalyzer 14 | . . . 11 . . . 3 . Insert Component 6 | . . . 5 . . . 1 . Analyze 8 | . . . 6 . . . 2 . Garrison Access Hacks 1 | . . . . . . . 1 . Unlock Access 1 | . . . . . . . 1 . Unauthorized Hacks 35 | . 7 . 14 . . . 14 . Terminals 29 | . 6 . 12 . . . 11 . Track 10 | . 3 . 3 . . . 4 . Assimilate 7 | . 1 . 5 . . . 1 . Botnet 8 | . 1 . 2 . . . 5 . Operators 4 | . 1 . 2 . . . 1 . Fabricators . | . . . . . . . . . Repair Stations . | . . . . . . . . . Recycling Units 5 | . 1 . 2 . . . 2 . Reject 5 | . 1 . 2 . . . 2 . Scanalyzers . | . . . . . . . . . Garrison Access 1 | . . . . . . . 1 . Broadcast 1 | . . . . . . . 1 . Data Cores Recovered 1 | . . . . . . . 1 . Used 1 | . . . . . . . 1 . Hacking Detections 35 | . 8 1 11 . . . 11 4 Full Trace Events 1 | . . . 1 . . . . . Feedback Events . | . . . . . . . . . Feedback Blocked . | . . . . . . . . . Robot Schematics Acquired 1 | . . 1 . . . . . . Robots Built . | . . . . . . . . . Authchips . | . . . . . . . . . Time . | . . . . . . . . . Total Robot Build Rating . | . . . . . . . . . Part Schematics Acquired 9 | . . . 5 . . . 4 . Parts Built 2 | . . . . . . . . 2 Authchips . | . . . . . . . . . Time 106 | . . . . . . . . 106 Total Part Build Rating 12 | . . . . . . . . 12 Parts Repaired 2 | . 1 . . . . . 1 . Time 76 | . 38 . . . . . 38 . Parts Recycled . | . . . . . . . . . Recycled Matter . | . . . . . . . . . Retrieved Matter . | . . . . . . . . . Retrieved Components 29 | . 3 . 8 . . . 18 . Parts Scanalyzed 6 | . . . 5 . . . 1 . Part Schematics Acquired 6 | . . . 5 . . . 1 . Parts Damaged . | . . . . . . . . . Bothacking | -11 -10 -10 -9 -9 -9 -8 -8 -7 ------------ Run | Scr Mat Min Mat Min Exi Min Mat Fac Used RIF Installer . | . . . . . . . . . Robots Hacked . | . . . . . . . . . Non-combat . | . . . . . . . . . Combat . | . . . . . . . . . Robot Hacks Applied . | . . . . . . . . . Relay Couplers Released . | . . . . . . . . . Fabnet Peak Effective % . | . . . . . . . . . Robots Rewired 1 | . . . . . . . . 1 Allies Hacked . | . . . . . . . . . Hacks Repelled . | . . . . . . . . . Allies | -11 -10 -10 -9 -9 -9 -8 -8 -7 -------- Run | Scr Mat Min Mat Min Exi Min Mat Fac Total Allies 10 | . 1 . 3 5 . . . 1 Largest Group 7 | . 1 1 2 7 6 4 4 1 Highest-Rated Group 104 | . 10 10 20 104 94 50 50 16 Highest-Rated Ally 31 | . 10 10 10 31 31 16 16 16 Total Orders 22 | . 8 3 1 . . 2 2 6 STAY 10 | . 3 1 1 . . 1 1 3 ROAM 3 | . 2 1 . . . . . . FOLLOW 9 | . 3 1 . . . 1 1 3 Ally Attacks 45 | . . . . 6 . 14 15 10 Total Damage 412 | . . . . 47 . 170 115 80 Kills 5 | . . . . 1 . 1 3 . Allies Corrupted . | . . . . . . . . . Allies Melted . | . . . . . . . . . Intel | -11 -10 -10 -9 -9 -9 -8 -8 -7 ------- Run | Scr Mat Min Mat Min Exi Min Mat Fac Robot Analysis Total 9 | . 1 1 2 . . . 5 . Derelict Logs Recovered 2 | . . 1 . 1 . . . . Drone Launches . | . . . . . . . . . Drone Recoveries . | . . . . . . . . . Exploration | -11 -10 -10 -9 -9 -9 -8 -8 -7 ------------- Run | Scr Mat Min Mat Min Exi Min Mat Fac Turns Passed 11957 | 228 1521 1005 3052 999 576 195 3218 1163 Spaces Moved 6971 | 122 960 680 1671 583 403 100 1723 729 Core 4 | 4 . . . . . . . . Treads . | . . . . . . . . . Legs 95 | 95 . . . . . . . . Wheels 6872 | 23 960 680 1671 583 403 100 1723 729 Hover . | . . . . . . . . . Flight . | . . . . . . . . . Fastest Speed 50 | 50 80 110 140 155 140 155 140 120 Average Speed 140 | 110 108 125 155 155 141 155 153 126 Slowest Speed 245 | 120 110 140 230 155 155 155 245 150 Overloaded Moves . | . . . . . . . . . Propulsion Burnouts . | . . . . . . . . . Robots Hopped . | . . . . . . . . . Cave-ins Triggered . | . . . . . . . . . Exploration Rate (%) 62 | 5 96 97 93 99 59 16 81 17 Regions Visited 8 Branch Regions 4 Pre-discovered Areas 2 | . . . . 1 1 . . . Known Exits Taken 1 | . . . . . . 1 . . Unknown Exits Taken 7 | 1 1 1 1 1 1 . 1 . Scrap Searched 4 | . . 3 . 1 . . . . Spaces Dug 11 | . 1 . 4 . . . 6 . Terrain Destroyed 89 | . 1 . 22 28 . . 21 17 Melee 9 | . 1 . 4 . . . 4 . Projectile 33 | . . . 7 1 . . 17 8 AOE 47 | . . . 11 27 . . . 9 Terrain Rammed . | . . . . . . . . . Walls Destroyed . | . . . . . . . . . Machines Disabled . | . . . . . . . . . Actions | -11 -10 -10 -9 -9 -9 -8 -8 -7 --------- Run | Scr Mat Min Mat Min Exi Min Mat Fac Total 8471 | 171 1329 791 1950 671 412 136 2141 870 Wait 769 | . 257 70 93 78 . 17 213 41 Move 6963 | 121 959 679 1670 582 402 99 1722 729 Hop . | . . . . . . . . . Pick Up 137 | 11 27 9 29 1 3 4 41 12 Fast Attach 32 | 8 . . 8 . 2 1 9 4 Attach 34 | 1 3 1 9 . . 3 14 3 Detach 4 | . . . 1 . . 3 . . Swap 63 | . 6 6 11 6 . . 16 18 Drop 115 | 4 13 4 32 1 5 5 40 11 Fire 293 | 26 49 13 92 3 . 4 67 39 Melee 57 | . 15 9 5 . . . 19 9 Ram . | . . . . . . . . . Kick . | . . . . . . . . . Crush . | . . . . . . . . . Escape Stasis . | . . . . . . . . . Rewire 4 | . . . . . . . . 4 Trap . | . . . . . . . . . Miscellaneous . | . . . . . . . . . Route ------- -11/Scrapyard -10/Materials (discovered 5 exits: *Mat x3 / *Min x2) -10/Mines (discovered 2 exits: *Mat x2) -9/Materials (discovered 4 exits: *Mat x3 / [*Min]) -9/Mines (discovered 3 exits: *Mat x2 / *Exi) -9/Exiles -8/Mines -8/Materials (discovered 3 exits: *Fac / [*Sto] / Gar) -7/Factory History --------- Turn | Location | Event 4 | -11/Scrapyard | Discovered new exit (range 16) 229 | -11/Scrapyard | Entered Materials 306 | -10/Materials | Build established: Mutant 340 | -10/Materials | Discovered new exit (range 13) 513 | -10/Materials | Discovered new exit (range 16) 738 | -10/Materials | Discovered new exit (range 7) 1145 | -10/Materials | Core integrity fell below 50% 1248 | -10/Materials | Discovered new exit (range 12) 1278 | -10/Materials | Central database locked down 1390 | -10/Materials | Repaired Imp. Terrain Scanner 1526 | -10/Materials | Discovered new exit (range 12) 1750 | -10/Materials | Entered Mines 1750 | -10/Mines | Accompanied by 1 ally 1775 | -10/Mines | Received a Rocket Launcher from a helpful Derelict 1891 | -10/Mines | Learned 2 Materials zone layouts 1972 | -10/Mines | Discovered new exit (range 11) 2092 | -10/Mines | Discovered new exit (range 10) 2163 | -10/Mines | Met a Derelict who couldn't figure out how to use a Trap Extractor 2437 | -10/Mines | Excavation squad dispatched 2437 | -10/Mines | A large section of the Mines collapsed 2755 | -10/Mines | Entered Materials 2755 | -9/Materials | Accompanied by 1 ally 2755 | -9/Materials | Evolved 2 slots: Utility x2 2756 | -9/Materials | Identified exit to Materials 3270 | -9/Materials | Discovered new exit (range 16) 3639 | -9/Materials | Discovered exit to Materials (range 3) 4439 | -9/Materials | Lost 3 parts (1n1u1w) 5229 | -9/Materials | Discovered exit to Materials (range 4) 5439 | -9/Materials | Central database locked down 5807 | -9/Materials | Entered Mines 5807 | -9/Mines | Accompanied by 2 allies 5917 | -9/Mines | Discovered exit to Materials (range 14) 5925 | -9/Mines | Assembled infested the area 5930 | -9/Mines | Assisted by a Guerilla fighting off Assembled 5946 | -9/Mines | Assisted by bots powering up and referring to "LRC-V3" 6022 | -9/Mines | Found a hidden stash of uninstalled traps 6198 | -9/Mines | Discovered exit to Materials (range 11) 6207 | -9/Mines | Learned Materials trap positions 6234 | -9/Mines | Build established: Commander-Mutant 6358 | -9/Mines | Learned location of Storage (-8) 6779 | -9/Mines | Deemed a non-threat by the Exiles lab entrance 6780 | -9/Mines | Discovered new exit (range 5) 6806 | -9/Mines | Entered Exiles 6806 | -9/Exiles | Accompanied by 6 allies 6836 | -9/Exiles | Led the pair of lost Derelicts to a safe place 6842 | -9/Exiles | Met 8R-AWN 6865 | -9/Exiles | Met EX-HEX 6905 | -9/Exiles | Met EX-BIN 6922 | -9/Exiles | Aligned with FarCom system 6924 | -9/Exiles | Given EX-Vault access code 6964 | -9/Exiles | Opened EX-Vault 6976 | -9/Exiles | Found Gui. Plasma Cannon 7008 | -9/Exiles | Warned to stay clear of 0b10 Research branches 7054 | -9/Exiles | Met EX-DEC 7073 | -9/Exiles | Learned location of Zion (-7) 7362 | -9/Exiles | Discovered new exit (range 14) 7382 | -9/Exiles | Left Exiles lab with Gui. Plasma Cannon 7382 | -9/Exiles | Entered Mines 7382 | -8/Mines | Accompanied by 4 allies 7419 | -8/Mines | Discovered exit to Materials (range 13) 7536 | -8/Mines | System corruption reached 10% 7577 | -8/Mines | Entered Materials 7577 | -8/Materials | Accompanied by 4 allies 7577 | -8/Materials | Evolved 2 slots: Utility x2 7578 | -8/Materials | Loaded intel: 23 trap records 8069 | -8/Materials | Build established: Mutant 8200 | -8/Materials | Lost 3 parts (1n1u1w) 8267 | -8/Materials | Discovered new exit (range 12) 8555 | -8/Materials | Discovered new exit (range 12) 8733 | -8/Materials | Repaired Ion Cannon 10426 | -8/Materials | Identified exit to Garrison 10795 | -8/Materials | Entered Factory 10795 | -7/Factory | Accompanied by 1 ally 10795 | -7/Factory | Evolved 2 slots: Propulsion x1, Utility x1 11609 | -7/Factory | Fabricated Antigrav System (x2) 11958 | -7/Factory | Self-destructed Last Messages --------------- 11932_ Knocked back. 11932_ R-06 Scavenger collects Unknown Engine. 11934_ System corrupted: Arm. Wheel rejected. 11934_ B-48 Gladiator destroyed. 11934_ K-01 Serf collects debris. 11936_ R-06 Scavenger collects Sml. Storage Unit. 11937_ K-01 Serf collects debris. 11940_ G-47 Trooper destroyed. 11942_ U-05 Engineer lays Concrete. 11942_ K-01 Serf collects debris. 11943_ G-47 Trooper knocked back. 11943_ G-47 Trooper destroyed. 11945_ K-01 Serf collects debris. 11951_ Acquired 2 matter. 11952_ K-01 Serf collects debris. 11952_ Acquired 5 matter. 11954_ Acquired 50 matter. 11956_ K-01 Serf collects debris. 11957_ Acquired 57 matter. 11957_ K-01 Serf collects debris. Map ----- +----------------------------------------------------+ | ?????????????????????????????????????????????????? | | ?????????????????????????????????????????????????? | | ?????????????????????????????????????????????????? | | ?????????????????????????????????????????????????? | | ?????????????????????????????????????????????????? | | ?????????????????????????????????????????????????? | | ?????????????????????????????????????????????????? | | #########?????#######????????????????????????????? | | #?????# #????????????????????????????? | | """ #?????# #????????????????????????????? | | """ #?????# +????????????????????????????? | | """ #?????? #????????????????????????????? | | "" #?????? ?????????????????????????????? | | "" #??????# #?????????????????????????????? | | #??????# #?????????????????????????????? | | #??????# #?????????????????????????????? | | #??????# #?????????????????????????????? | | ##+############# #########?????????????????????? | | a #?????????????????????? | | = #?????????????????????? | | % % "" "" +?????????????????????? | | """ """ " " #?????????????????????? | | """ """ %!% #?????????????????????? | | ##+##### """ """ =% k #?????????????????????? | | ## %%! % !%###/########??????????? | | ## """ """ "%%[% @! ????????? | | " " ## """ """ %%%*% =*k= ????????? | | " " ## """ """ """ "% * ????????? | | " " ## =% ????????? | | " " ## ?????????? | | " " ##########+#######+#;##;###### ?????????? | | " " #???????? ???????% ? #?????? ??????????? | | " " #??????? ??????? ? #?????????????????? | | " " #???????[ ???????""""""?#?????????????????? | | " " #??????? ???????? ??????????????????? | | ????????????????????""""" #?????????????????? | | ? ]????????????????????? +?????????????????? | | #??#??????????????????????"????#?????????????????? | | ?????????????????????????????????????????????????? | | ?????????????????????????????????????????????????? | | ?????????????????????????????????????????????????? | | ?????????????????????????????????????????????????? | | ?????????????????????????????????????????????????? | | ?????????????????????????????????????????????????? | | ?????????????????????????????????????????????????? | | ?????????????????????????????????????????????????? | | ?????????????????????????????????????????????????? | | ?????????????????????????????????????????????????? | | ?????????????????????????????????????????????????? | | ?????????????????????????????????????????????????? | +----------------------------------------------------+ Best States ------------- Heat Dissipation 53 Energy Generation 23 Energy Capacity 280 Matter Stores 300 Matter Capacity 300 Sight Range 20 Terrain Scan Range 16 Terrain Scan Density 10 Armor Coverage 375 Weapon Shielding 33 Evasion (%) 55 Targeting Accuracy 8 Core Analysis 6 Recoil Reduction 4 Defensive Hacking 10 Trap Extractor Capacity 6 Item Schematics ----------------- Hvy. Assault Cannon | -9/Materials | Scanalyzed Huge Storage Unit | -9/Materials | Scanalyzed Imp. Terrain Scan Processor | -9/Materials | Scanalyzed Imp. Trap Extractor | -9/Materials | Scanalyzed Arm. Wheel | -9/Materials | Scanalyzed Reflective Plating | -8/Materials | Hacked Imp. Airjet | -8/Materials | Scanalyzed Adv. Weight Redist. System | -8/Materials | Hacked Imp. Propulsion Shielding | -8/Materials | Hacked Robot Schematics ------------------ O-16 Technician | -10/Mines | Hacked Fabricated ------------ Antigrav System | x2 | -7/Factory | Preloaded Alien Tech Used ----------------- None Achievements -------------- None Challenges ------------ None Game ------ Seed LargeProcessingDetector Manual? 0 Play Time 01:51:33 Cumulative 295.1 hours Start 2022.04.14 @ 15:43:40 End 2022.04.14 @ 18:11:22 Sessions 1 Manual Loads 0 Difficulty Rogue Special Mode None Game No. 244 Rogue 244 Adventurer 0 Explorer 0 Win Type - Total 0 Types 0/0/0/0/0/0/0/0/0 Lore% 53 Gallery% 59 Achievement% 42 Wizard Run 0 Options --------- ASCII 0 Keyboard 0 Movement Mouse Keybinds 0 Fullscreen 1 Font 16/SmallcapsGlow Map View 75x55 Tactical HUD 1 Map Filters NONE Filters NONE Steam 1 RUN: 9bd2d3bf-b832-4434-9864-a51ebd523740